Workbook

Sheet Családi költségvetés
B1: A LUKÁCS CSALÁD KÖLTSÉGVETÉSE
B2: ÉV: | C2: 2013
B4: RENDELKEZÉSRE ÁLLÓ KÉSZPÉNZ | C4: JAN. | D4: FEB. | E4: MÁRC. | F4: ÁPR. | G4: MÁJ. | H4: JÚN. | I4: JÚL. | J4: AUG. | K4: SZEPT. | L4: OKT. | M4: NOV. | N4: DEC. | O4: EDDIGI ÉVES | P4: TREND
B5: Havi készpénz | C5: =Bevételtbl[[#Totals],[JAN.]]-Kiadásoktbl[[#Totals],[JAN.]] -> 1,220.00 Ft | D5: =Bevételtbl[[#Totals],[FEB.]]-Kiadásoktbl[[#Totals],[FEB.]] -> 1,587.00 Ft | E5: =Bevételtbl[[#Totals],[MÁRC.]]-Kiadásoktbl[[#Totals],[MÁRC.]] -> 1,174.00 Ft | F5: =Bevételtbl[[#Totals],[ÁPR.]]-Kiadásoktbl[[#Totals],[ÁPR.]] -> 1,445.00 Ft | G5: =Bevételtbl[[#Totals],[MÁJ.]]-Kiadásoktbl[[#Totals],[MÁJ.]] -> 1,391.00 Ft | H5: =Bevételtbl[[#Totals],[JÚN.]]-Kiadásoktbl[[#Totals],[JÚN.]] -> 1,434.00 Ft | I5: =Bevételtbl[[#Totals],[JÚL.]]-Kiadásoktbl[[#Totals],[JÚL.]] -> 1,085.00 Ft | J5: =Bevételtbl[[#Totals],[AUG.]]-Kiadásoktbl[[#Totals],[AUG.]] -> 1,181.00 Ft | K5: =Bevételtbl[[#Totals],[SZEPT.]]-Kiadásoktbl[[#Totals],[SZEPT.]] -> 1,445.00 Ft | L5: =Bevételtbl[[#Totals],[OKT.]]-Kiadásoktbl[[#Totals],[OKT.]] -> 1,466.00 Ft | M5: =Bevételtbl[[#Totals],[NOV.]]-Kiadásoktbl[[#Totals],[NOV.]] -> 0.00 Ft | N5: =Bevételtbl[[#Totals],[DEC.]]-Kiadásoktbl[[#Totals],[DEC.]] -> 0.00 Ft | O5: =Bevételtbl[[#Totals],[EDDIGI ÉVES]]-Kiadásoktbl[[#Totals],[EDDIGI ÉVES]] -> 13,428.00 Ft
B7: BEVÉTEL TÍPUSA | C7: JAN. | D7: FEB. | E7: MÁRC. | F7: ÁPR. | G7: MÁJ. | H7: JÚN. | I7: JÚL. | J7: AUG. | K7: SZEPT. | L7: OKT. | M7: NOV. | N7: DEC. | O7: EDDIGI ÉVES | P7: TREND
B8: 1. bevétel | C8: 4,000.00 Ft | D8: 4,410.00 Ft | E8: 4,019.00 Ft | F8: 4,263.00 Ft | G8: 4,123.00 Ft | H8: 4,308.00 Ft | I8: 4,162.00 Ft | J8: 4,165.00 Ft | K8: 4,248.00 Ft | L8: 4,324.00 Ft | O8: =SUM(Bevételtbl[[#This Row],[JAN.]:[DEC.]]) -> 42,022.00 Ft
B9: 2. bevétel | C9: 275.00 Ft | D9: 296.00 Ft | E9: 251.00 Ft | F9: 269.00 Ft | G9: 252.00 Ft | H9: 252.00 Ft | I9: 262.00 Ft | J9: 258.00 Ft | K9: 296.00 Ft | L9: 270.00 Ft | O9: =SUM(Bevételtbl[[#This Row],[JAN.]:[DEC.]]) -> 2,681.00 Ft
B10: Egyéb bevétel | C10: 500.00 Ft | D10: 507.00 Ft | E10: 551.00 Ft | F10: 556.00 Ft | G10: 588.00 Ft | H10: 534.00 Ft | I10: 533.00 Ft | J10: 585.00 Ft | K10: 560.00 Ft | L10: 520.00 Ft | O10: =SUM(Bevételtbl[[#This Row],[JAN.]:[DEC.]]) -> 5,434.00 Ft
B11: BEVÉTEL ÖSSZESEN | C11: =SUBTOTAL(109,Bevételtbl[JAN.]) -> 4,775.00 Ft | D11: =SUBTOTAL(109,Bevételtbl[FEB.]) -> 5,213.00 Ft | E11: =SUBTOTAL(109,Bevételtbl[MÁRC.]) -> 4,821.00 Ft | F11: =SUBTOTAL(109,Bevételtbl[ÁPR.]) -> 5,088.00 Ft | G11: =SUBTOTAL(109,Bevételtbl[MÁJ.]) -> 4,963.00 Ft | H11: =SUBTOTAL(109,Bevételtbl[JÚN.]) -> 5,094.00 Ft | I11: =SUBTOTAL(109,Bevételtbl[JÚL.]) -> 4,957.00 Ft | J11: =SUBTOTAL(109,Bevételtbl[AUG.]) -> 5,008.00 Ft | K11: =SUBTOTAL(109,Bevételtbl[SZEPT.]) -> 5,104.00 Ft | L11: =SUBTOTAL(109,Bevételtbl[OKT.]) -> 5,114.00 Ft | M11: =SUBTOTAL(109,Bevételtbl[NOV.]) -> 0.00 Ft | N11: =SUBTOTAL(109,Bevételtbl[DEC.]) -> 0.00 Ft | O11: =SUBTOTAL(109,Bevételtbl[EDDIGI ÉVES]) -> 50,137.00 Ft
B13: KIADÁS | C13: JAN. | D13: FEB. | E13: MÁRC. | F13: ÁPR. | G13: MÁJ. | H13: JÚN. | I13: JÚL. | J13: AUG. | K13: SZEPT. | L13: OKT. | M13: NOV. | N13: DEC. | O13: EDDIGI ÉVES | P13: TREND
B14: Lakás | C14: 1,500.00 Ft | D14: 1,500.00 Ft | E14: 1,500.00 Ft | F14: 1,500.00 Ft | G14: 1,500.00 Ft | H14: 1,500.00 Ft | I14: 1,500.00 Ft | J14: 1,500.00 Ft | K14: 1,500.00 Ft | L14: 1,500.00 Ft | O14: =SUM(Kiadásoktbl[[#This Row],[JAN.]:[DEC.]]) -> 15,000.00 Ft
B15: Élelmiszer | C15: 250.00 Ft | D15: 331.00 Ft | E15: 299.00 Ft | F15: 333.00 Ft | G15: 324.00 Ft | H15: 313.00 Ft | I15: 338.00 Ft | J15: 225.00 Ft | K15: 258.00 Ft | L15: 322.00 Ft | O15: =SUM(Kiadásoktbl[[#This Row],[JAN.]:[DEC.]]) -> 2,993.00 Ft
B16: Autó költségei | C16: 345.00 Ft | D16: 345.00 Ft | E16: 345.00 Ft | F16: 345.00 Ft | G16: 345.00 Ft | H16: 345.00 Ft | I16: 345.00 Ft | J16: 345.00 Ft | K16: 345.00 Ft | L16: 345.00 Ft | O16: =SUM(Kiadásoktbl[[#This Row],[JAN.]:[DEC.]]) -> 3,450.00 Ft
B17: Biztosítás | C17: 120.00 Ft | D17: 120.00 Ft | E17: 120.00 Ft | F17: 120.00 Ft | G17: 120.00 Ft | H17: 120.00 Ft | I17: 120.00 Ft | J17: 120.00 Ft | K17: 120.00 Ft | L17: 120.00 Ft | O17: =SUM(Kiadásoktbl[[#This Row],[JAN.]:[DEC.]]) -> 1,200.00 Ft
B18: Otthoni telefon | C18: 50.00 Ft | D18: 50.00 Ft | E18: 50.00 Ft | F18: 50.00 Ft | G18: 50.00 Ft | H18: 50.00 Ft | I18: 50.00 Ft | J18: 50.00 Ft | K18: 50.00 Ft | L18: 50.00 Ft | O18: =SUM(Kiadásoktbl[[#This Row],[JAN.]:[DEC.]]) -> 500.00 Ft
B19: Mobiltelefon | C19: 72.00 Ft | D19: 70.00 Ft | E19: 80.00 Ft | F19: 70.00 Ft | G19: 75.00 Ft | H19: 80.00 Ft | I19: 90.00 Ft | J19: 73.00 Ft | K19: 75.00 Ft | L19: 70.00 Ft | O19: =SUM(Kiadásoktbl[[#This Row],[JAN.]:[DEC.]]) -> 755.00 Ft
B20: Kábeltelevízió | C20: 60.00 Ft | D20: 63.00 Ft | E20: 65.00 Ft | F20: 60.00 Ft | G20: 65.00 Ft | H20: 60.00 Ft | I20: 63.00 Ft | J20: 60.00 Ft | K20: 63.00 Ft | L20: 60.00 Ft | O20: =SUM(Kiadásoktbl[[#This Row],[JAN.]:[DEC.]]) -> 619.00 Ft
B21: Internet | C21: 45.00 Ft | D21: 45.00 Ft | E21: 45.00 Ft | F21: 45.00 Ft | G21: 45.00 Ft | H21: 45.00 Ft | I21: 45.00 Ft | J21: 45.00 Ft | K21: 45.00 Ft | L21: 45.00 Ft | O21: =SUM(Kiadásoktbl[[#This Row],[JAN.]:[DEC.]]) -> 450.00 Ft
B22: Áram | C22: 155.00 Ft | D22: 155.00 Ft | E22: 158.00 Ft | F22: 160.00 Ft | G22: 165.00 Ft | H22: 200.00 Ft | I22: 340.00 Ft | J22: 350.00 Ft | K22: 240.00 Ft | L22: 180.00 Ft | O22: =SUM(Kiadásoktbl[[#This Row],[JAN.]:[DEC.]]) -> 2,103.00 Ft
B23: Víz | C23: 35.00 Ft | D23: 35.00 Ft | E23: 37.00 Ft | F23: 39.00 Ft | G23: 45.00 Ft | H23: 42.00 Ft | I23: 42.00 Ft | J23: 36.00 Ft | K23: 38.00 Ft | L23: 40.00 Ft | O23: =SUM(Kiadásoktbl[[#This Row],[JAN.]:[DEC.]]) -> 389.00 Ft
B24: Gáz | C24: 50.00 Ft | D24: 45.00 Ft | E24: 40.00 Ft | F24: 40.00 Ft | G24: 42.00 Ft | H24: 50.00 Ft | I24: 55.00 Ft | J24: 40.00 Ft | K24: 43.00 Ft | L24: 30.00 Ft | O24: =SUM(Kiadásoktbl[[#This Row],[JAN.]:[DEC.]]) -> 435.00 Ft
B25: Szórakozás | C25: 123.00 Ft | D25: 92.00 Ft | E25: 58.00 Ft | F25: 131.00 Ft | G25: 46.00 Ft | H25: 105.00 Ft | I25: 84.00 Ft | J25: 108.00 Ft | K25: 132.00 Ft | L25: 136.00 Ft | O25: =SUM(Kiadásoktbl[[#This Row],[JAN.]:[DEC.]]) -> 1,015.00 Ft
B26: Magánórák | C26: 550.00 Ft | D26: 550.00 Ft | E26: 550.00 Ft | F26: 550.00 Ft | G26: 550.00 Ft | H26: 550.00 Ft | I26: 550.00 Ft | J26: 550.00 Ft | K26: 550.00 Ft | L26: 550.00 Ft | O26: =SUM(Kiadásoktbl[[#This Row],[JAN.]:[DEC.]]) -> 5,500.00 Ft
B27: Megtakarítás | C27: 200.00 Ft | D27: 225.00 Ft | E27: 300.00 Ft | F27: 200.00 Ft | G27: 200.00 Ft | H27: 200.00 Ft | I27: 250.00 Ft | J27: 325.00 Ft | K27: 200.00 Ft | L27: 200.00 Ft | O27: =SUM(Kiadásoktbl[[#This Row],[JAN.]:[DEC.]]) -> 2,300.00 Ft
B28: KIADÁS ÖSSZESEN | C28: =SUBTOTAL(109,Kiadásoktbl[JAN.]) -> 3,555.00 Ft | D28: =SUBTOTAL(109,Kiadásoktbl[FEB.]) -> 3,626.00 Ft | E28: =SUBTOTAL(109,Kiadásoktbl[MÁRC.]) -> 3,647.00 Ft | F28: =SUBTOTAL(109,Kiadásoktbl[ÁPR.]) -> 3,643.00 Ft | G28: =SUBTOTAL(109,Kiadásoktbl[MÁJ.]) -> 3,572.00 Ft | H28: =SUBTOTAL(109,Kiadásoktbl[JÚN.]) -> 3,660.00 Ft | I28: =SUBTOTAL(109,Kiadásoktbl[JÚL.]) -> 3,872.00 Ft | J28: =SUBTOTAL(109,Kiadásoktbl[AUG.]) -> 3,827.00 Ft | K28: =SUBTOTAL(109,Kiadásoktbl[SZEPT.]) -> 3,659.00 Ft | L28: =SUBTOTAL(109,Kiadásoktbl[OKT.]) -> 3,648.00 Ft | M28: =SUBTOTAL(109,Kiadásoktbl[NOV.]) -> 0.00 Ft | N28: =SUBTOTAL(109,Kiadásoktbl[DEC.]) -> 0.00 Ft | O28: =SUBTOTAL(109,Kiadásoktbl[EDDIGI ÉVES]) -> 36,709.00 Ft
